bitfinex/quotes_BTCUSD_20250114
["timestamp","ask_amount","ask_price","bid_price","bid_amount"]
[1736870397624,1.57834412,96634.0,96633.0,8.9e-07]
[1736870397844,1.57534412,96634.0,96633.0,8.9e-07]
[1736870398589,1.44792568,96634.0,96633.0,8.9e-07]
[1736870398766,1.49552568,96634.0,96633.0,8.9e-07]
[1736870399738,1.50452568,96634.0,96633.0,8.9e-07]
[1736870399914,1.50152568,96634.0,96633.0,8.9e-07]
[1736870400123,1.49252568,96634.0,96633.0,8.9e-07]
[1736870400998,1.16517147,96634.0,96614.0,7e-05]
[1736870401177,0.13589671,96624.0,96614.0,7e-05]
[1736870401419,0.10422692,96623.0,96614.0,7e-05]
[1736870401842,0.15,96622.0,96614.0,7e-05]
[1736870402037,0.357007,96615.0,96614.0,7e-05]
[1736870402244,0.56605671,96615.0,96614.0,7e-05]
[1736870403274,0.64495671,96615.0,96614.0,7e-05]
[1736870403478,0.69415671,96615.0,96614.0,7e-05]
[1736870403749,0.80315671,96615.0,96614.0,1e-06]
[1736870403951,0.79415671,96615.0,96614.0,1e-06]
[1736870404148,0.357024,96607.0,96606.0,0.0003]
[1736870404351,0.5023284,96607.0,96606.0,0.0003]
[1736870404528,0.5023284,96607.0,96606.0,1e-08]
[1736870405111,0.5023284,96607.0,96585.0,0.0008541]
[1736870405112,0.15,96606.0,96585.0,0.0008541]
[1736870405325,0.357032,96603.0,96585.0,0.0008541]
[1736870405527,0.357069,96586.0,96585.0,0.0008541]
[1736870406006,0.435969,96586.0,96585.0,0.0008541]
[1736870406177,0.54019592,96586.0,96585.0,0.0008541]
[1736870406323,0.173,96585.0,96583.0,6e-07]
[1736870406528,0.76319992,96584.0,96552.0,0.00072914]
[1736870406729,0.21585576,96586.0,96552.0,0.00072914]
[1736870406730,0.38014,96553.0,96552.0,0.00072914]
[1736870406931,0.56380592,96553.0,96552.0,0.00072914]
[1736870407137,0.173,96552.0,96551.0,7.4e-07]
[1736870407347,0.173,96552.0,96531.0,0.01240447]
[1736870407348,0.1,96532.0,96531.0,1.1e-07]
[1736870407558,0.1,96513.0,96505.0,0.015489]
[1736870407763,0.357241,96506.0,96469.0,0.00103649]
[1736870408003,0.207288,96484.0,96468.0,0.0476]
[1736870408222,0.207288,96484.0,96462.0,0.00979122]
[1736870408378,0.207288,96484.0,96465.0,0.0013365]
[1736870408929,0.48451492,96484.0,96475.0,0.009791]
[1736870409145,0.207277,96489.0,96465.0,0.0003]
[1736870409553,0.414563,96487.0,96465.0,0.0003]
[1736870409917,0.13589671,96510.0,96468.0,0.10889952]
[1736870410116,0.207259,96498.0,96473.0,0.207311]
[1736870410363,0.13589671,96510.0,96473.0,0.207311]
[1736870410364,0.00863975,96505.0,96473.0,0.20731]
[1736870410521,0.0789,96529.0,96468.0,0.20889952]
[1736870410522,0.1,96527.0,96495.0,0.13589671]
[1736870410721,0.1,96540.0,96495.0,0.207263]
[1736870410920,0.0086636,96516.0,96496.0,0.13589671]
[1736870411124,0.207175,96537.0,96505.0,0.1]
[1736870411335,0.00864593,96531.0,96505.0,0.1]
[1736870411534,0.0789,96562.0,96520.0,0.20432773]
[1736870411535,0.02054999,96547.0,96520.0,0.20432773]
[1736870411741,0.10422692,96546.0,96520.0,0.20432773]
[1736870411939,0.207157,96545.0,96520.0,0.24746773]
[1736870412193,0.10422692,96544.0,96520.0,0.04314]
[1736870412395,0.15,96529.0,96520.0,0.04314]
[1736870412615,0.15,96526.0,96520.0,0.04314]
[1736870412890,0.207189,96530.0,96520.0,0.04314]
[1736870412891,0.023,96521.0,96520.0,0.04314]
[1736870413034,0.48443492,96521.0,96520.0,0.04314]
[1736870413234,0.207241,96506.0,96505.0,0.00049839]
[1736870413444,0.48219202,96506.0,96505.0,0.00049839]
[1736870413640,0.46246792,96506.0,96505.0,0.00049839]
[1736870413843,0.10911581,96521.0,96505.0,0.00049839]
[1736870414088,0.207213,96519.0,96505.0,0.00049839]
[1736870414402,0.001,96506.0,96505.0,0.00049839]
[1736870414822,0.10422692,96506.0,96505.0,0.00049839]
[1736870414949,0.17337321,96506.0,96505.0,0.00049839]
[1736870415147,0.50227321,96506.0,96505.0,0.00049839]
[1736870416016,0.40227321,96506.0,96505.0,0.00049839]
[1736870416173,0.41157428,96506.0,96505.0,0.00049839]
[1736870416525,0.43220733,96506.0,96505.0,0.00049839]
[1736870417482,0.53520733,96506.0,96505.0,0.00049839]
[1736870417891,0.63520733,96506.0,96505.0,0.00049839]
[1736870418084,0.63620733,96506.0,96505.0,0.00049839]
[1736870418440,0.63320733,96506.0,96505.0,0.00049839]
[1736870418692,0.39006104,96506.0,96505.0,0.00049839]
[1736870418903,0.28816104,96506.0,96505.0,0.00049839]
[1736870419106,0.29016104,96506.0,96505.0,0.00049839]
[1736870419250,0.26952799,96506.0,96505.0,0.00049839]
[1736870419456,0.26752799,96506.0,96505.0,0.00135209]
[1736870419654,0.34276387,96506.0,96505.0,0.00135209]
[1736870419854,0.36676387,96506.0,96505.0,0.00135209]
[1736870420061,0.36276387,96506.0,96505.0,0.00135209]
[1736870420257,0.37176387,96506.0,96505.0,0.00135209]
[1736870420662,0.36276387,96506.0,96505.0,0.00135209]
[1736870420912,0.36376387,96506.0,96505.0,0.00135209]
[1736870421211,0.36176387,96506.0,96505.0,0.00135209]
[1736870421422,0.46176387,96506.0,96505.0,0.00135209]
[1736870421620,0.380288,96484.0,96483.0,7e-05]
[1736870421821,0.54327212,96484.0,96483.0,0.00021949]
[1736870422265,0.62537212,96484.0,96483.0,0.00021949]
[1736870422679,0.72537212,96484.0,96483.0,0.00021949]
[1736870422888,0.72537212,96484.0,96483.0,4.9e-07]
[1736870423090,0.72537212,96484.0,96450.0,0.00072944]
[1736870423091,0.457326,96466.0,96450.0,0.00072944]
[1736870423337,0.357359,96451.0,96450.0,0.00072944]
[1736870423513,0.48458592,96451.0,96450.0,0.00087836]
[1736870423750,0.56668592,96451.0,96450.0,0.00014892]
[1736870423949,0.380384,96439.0,96423.0,0.0008537]
[1736870424124,0.48461092,96439.0,96438.0,0.01478473]
[1736870424264,0.64307201,96439.0,96438.0,0.01478473]
[1736870424470,0.54307201,96439.0,96438.0,0.01478473]
[1736870424664,0.207417,96424.0,96423.0,0.0008537]
[1736870424879,0.46164392,96424.0,96423.0,0.00100342]
[1736870425335,0.50561425,96424.0,96423.0,0.00100342]
[1736870425530,0.59199296,96424.0,96423.0,0.00100342]
[1736870426062,0.15,96424.0,96423.0,0.00100342]
[1736870426436,0.25422692,96424.0,96423.0,0.00100342]
[1736870427246,0.25822692,96424.0,96423.0,0.00100342]
[1736870427623,0.27722692,96424.0,96423.0,0.00100342]
[1736870428110,0.37722692,96424.0,96423.0,0.00100342]
[1736870428280,0.46942123,96424.0,96423.0,0.00100342]
[1736870428478,0.54572123,96424.0,96423.0,0.00100342]
[1736870429267,0.44572123,96424.0,96423.0,0.00100342]
[1736870429467,0.207449,96409.0,96408.0,0.0008537]
[1736870429669,0.46167592,96409.0,96408.0,0.00093065]
[1736870429876,0.207438,96415.0,96408.0,0.00093065]
[1736870430194,0.414882,96413.0,96408.0,0.00093065]
[1736870430393,0.15,96410.0,96408.0,0.00093065]
[1736870430709,0.207445,96411.0,96408.0,0.00093065]
[1736870430874,0.10422692,96412.0,96408.0,0.00093065]
[1736870431081,0.023,96410.0,96408.0,0.00093065]
[1736870431283,0.48467592,96409.0,96408.0,0.00093065]
[1736870431663,0.58467592,96409.0,96408.0,0.00093065]
[1736870432236,0.48467592,96409.0,96408.0,0.00093065]
[1736870432442,0.58890284,96409.0,96408.0,0.00093065]
[1736870432672,0.48467592,96409.0,96408.0,0.00093065]
[1736870432972,0.25422692,96409.0,96408.0,0.00093065]
[1736870433185,0.207413,96426.0,96408.0,0.00093065]
[1736870433432,0.10422692,96425.0,96408.0,0.00093065]
[1736870433631,0.207417,96424.0,96408.0,0.00093065]
[1736870433873,0.207421,96422.0,96408.0,0.00093065]
[1736870434091,0.07233846,96423.0,96409.0,0.207449]
[1736870434296,0.20432773,96420.0,96408.0,0.00093065]
[1736870435063,0.31164992,96422.0,96408.0,0.00093065]
[1736870435477,0.207431,96418.0,96408.0,0.00093065]
[1736870435693,0.02252458,96417.0,96408.0,0.20838065]
[1736870435881,0.02252458,96417.0,96408.0,0.00093065]
[1736870436117,0.22995758,96417.0,96408.0,0.00093065]
[1736870436282,0.207443,96412.0,96408.0,0.00093065]
[1736870436454,0.207447,96410.0,96408.0,0.00093065]
[1736870436654,0.10422692,96409.0,96408.0,0.00093065]
[1736870438410,0.27722692,96409.0,96408.0,0.00093065]
[1736870439385,0.25422692,96409.0,96408.0,0.00093065]
[1736870439977,0.357477,96396.0,96386.0,0.0008537]
[1736870440160,0.48470392,96396.0,96386.0,0.0008537]
[1736870440375,0.46170392,96396.0,96386.0,0.0008537]
[1736870441437,0.207467,96401.0,96387.0,0.207496]
[1736870441571,0.207461,96404.0,96391.0,0.207488]
[1736870441772,7.732e-05,96409.0,96387.0,0.207495]
[1736870441975,0.15,96407.0,96386.0,0.0008537]
[1736870442196,0.414943,96399.0,96386.0,0.0008537]
[1736870442519,0.207464,96402.0,96391.0,0.207487]
[1736870442703,0.15,96407.0,96394.0,0.207479]
[1736870442901,0.207458,96405.0,96396.0,0.207477]
[1736870443102,0.207468,96401.0,96386.0,0.0008537]
[1736870443429,0.207456,96406.0,96392.0,0.207486]
[1736870443584,0.207456,96406.0,96396.0,0.207477]
[1736870443785,0.207456,96406.0,96392.0,0.207486]
[1736870443993,0.20746,96404.0,96392.0,0.207486]
[1736870444394,0.20746,96404.0,96395.0,0.0023]
[1736870444797,0.46168092,96407.0,96396.0,0.207477]
[1736870445001,0.15,96407.0,96396.0,0.207477]
[1736870445277,0.15,96407.0,96395.0,0.0033]
[1736870445483,7.732e-05,96409.0,96407.0,0.207453]
[1736870446231,7.732e-05,96409.0,96408.0,0.00103715]
[1736870446433,7.732e-05,96409.0,96408.0,0.20526407]
[1736870446637,7.732e-05,96409.0,96408.0,0.30526407]
[1736870446861,7.732e-05,96409.0,96408.0,0.34850692]
[1736870447068,7.732e-05,96409.0,96408.0,0.04428]
[1736870447611,7.732e-05,96409.0,96408.0,0.251731]
[1736870447986,7.732e-05,96409.0,96408.0,0.351731]
[1736870448188,7.732e-05,96409.0,96408.0,0.45595792]
[1736870448779,7.732e-05,96409.0,96408.0,0.351731]
[1736870449243,0.00107732,96409.0,96408.0,0.56095792]
[1736870449666,0.207357,96452.0,96422.0,0.207421]
[1736870449867,0.0453,96466.0,96422.0,0.207421]
[1736870449868,0.0453,96466.0,96422.0,0.31268483]
[1736870450069,0.207338,96461.0,96422.0,0.51164792]
[1736870450188,0.20432773,96470.0,96435.0,0.1]
[1736870450387,0.02126224,96472.0,96442.0,0.1]
[1736870450586,0.207313,96473.0,96457.0,0.207346]
[1736870450796,0.15,96475.0,96451.0,0.00103667]
[1736870451034,0.10422692,96475.0,96457.0,0.04428]
[1736870451245,0.0922391,96479.0,96451.0,0.04428]
[1736870451246,0.10422692,96468.0,96451.0,0.04428]
[1736870451497,0.15,96451.0,96408.0,0.00772988]
[1736870451785,0.15,96437.0,96418.0,0.207428]
[1736870451988,0.15,96433.0,96422.0,0.207419]
[1736870452194,0.15,96433.0,96418.0,0.207428]
[1736870452858,0.15,96433.0,96415.0,0.207435]
[1736870453050,0.15,96435.0,96415.0,0.207435]
[1736870453237,0.207409,96428.0,96415.0,0.00014965]
[1736870453437,0.414821,96427.0,96415.0,0.00014965]
[1736870453888,0.20741,96427.0,96415.0,0.20758365]
[1736870454103,0.20432773,96460.0,96415.0,0.00014965]
[1736870454255,0.10422692,96449.0,96416.0,0.0010371]
[1736870454460,0.207415,96425.0,96415.0,0.00014965]
[1736870454720,0.15,96429.0,96415.0,0.00014965]
[1736870454920,0.207418,96424.0,96415.0,0.00114965]
[1736870455289,0.207412,96426.0,96415.0,0.00114965]
[1736870455498,0.207422,96422.0,96415.0,0.00114965]
[1736870456125,0.207431,96418.0,96415.0,0.00014965]
[1736870456327,0.207422,96422.0,96415.0,0.00014965]
[1736870456524,0.207432,96417.0,96415.0,0.00014965]
[1736870457012,0.00179718,96427.0,96415.0,0.00314965]
[1736870457220,0.207412,96426.0,96415.0,0.00314965]
[1736870457417,0.00179718,96427.0,96415.0,0.00418681]
[1736870457638,0.00179718,96427.0,96426.0,0.207412]
[1736870458220,0.00179718,96427.0,96426.0,0.20844894]
[1736870459064,0.00179718,96427.0,96418.0,0.20743]
[1736870459206,0.00179718,96427.0,96423.0,0.05178]
[1736870459408,0.414825,96426.0,96423.0,0.05178]
[1736870459610,0.26950699,96426.0,96423.0,0.05178]
[1736870459819,0.26950699,96426.0,96415.0,0.00014965]
[1736870459820,0.207422,96422.0,96415.0,0.00014965]
[1736870460022,0.207412,96426.0,96415.0,0.00014965]
[1736870460023,0.20743,96418.0,96415.0,0.00014965]
[1736870460229,0.00179718,96427.0,96415.0,0.00014965]
[1736870460531,0.207434,96417.0,96415.0,0.00014965]
[1736870460951,0.207428,96419.0,96415.0,0.00014965]
[1736870461200,0.207423,96421.0,96415.0,0.00014965]
[1736870461614,0.207433,96417.0,96415.0,0.00014965]
[1736870461983,0.207433,96417.0,96415.0,0.05192965]
[1736870462183,0.10422692,96416.0,96415.0,0.05192965]
[1736870462384,0.10422692,96416.0,96415.0,0.05692965]
[1736870462836,0.27722692,96416.0,96415.0,0.00514965]
[1736870463052,0.35196991,96416.0,96415.0,0.00014965]
[1736870463226,0.35196991,96416.0,96415.0,0.00514965]
[1736870463544,0.35196991,96416.0,96415.0,0.005]
[1736870463739,0.27722692,96416.0,96415.0,0.005]
[1736870463941,0.28654986,96416.0,96415.0,0.005]
[1736870464143,0.28654986,96416.0,96415.0,1e-08]
[1736870464655,0.207468,96400.0,96395.0,0.0003]
[1736870464868,0.48469492,96400.0,96399.0,0.00135549]
[1736870465074,0.62453402,96400.0,96399.0,0.00135549]
[1736870465971,0.62453402,96400.0,96399.0,0.00335549]
[1736870466396,0.38929492,96400.0,96399.0,0.00335549]
[1736870466571,0.207468,96400.0,96399.0,0.00135549]
[1736870466928,0.29863397,96412.0,96399.0,0.00135549]
[1736870467151,0.207453,96408.0,96399.0,0.00135549]
[1736870467356,0.10422692,96411.0,96399.0,0.00135549]
[1736870467559,0.10422692,96411.0,96408.0,0.207451]
[1736870467770,0.09119097,96412.0,96408.0,0.207451]
[1736870467971,0.20920818,96427.0,96414.0,0.207437]
[1736870468254,0.20920818,96427.0,96414.0,0.259217]
[1736870468467,0.00179718,96427.0,96414.0,0.259217]
[1736870468712,0.00179718,96427.0,96423.0,0.207418]
[1736870468911,0.00179718,96427.0,96425.0,0.207415]
[1736870469114,0.00179718,96427.0,96426.0,0.10526387]
[1736870469481,0.00179718,96427.0,96426.0,0.15704387]
[1736870469684,0.00179718,96427.0,96426.0,0.40704387]
[1736870469914,0.00179718,96427.0,96426.0,0.61023384]
[1736870470320,0.00179718,96427.0,96426.0,0.40600692]
[1736870470715,0.00179718,96427.0,96426.0,0.05178]
[1736870470833,0.00179718,96427.0,96426.0,0.15178]
[1736870471036,0.00179718,96427.0,96426.0,0.152817]
[1736870471688,0.00279718,96427.0,96426.0,0.159817]
[1736870471866,0.00279718,96427.0,96426.0,0.51404392]
[1736870472069,0.00179718,96427.0,96426.0,0.61023384]
[1736870472293,0.00179718,96427.0,96426.0,0.50600692]
[1736870472563,0.00279718,96427.0,96426.0,0.51200692]
[1736870472939,0.00279718,96427.0,96426.0,0.50600692]
[1736870472940,0.00179718,96427.0,96426.0,0.50600692]
[1736870473289,0.00279718,96427.0,96426.0,0.52128969]
[1736870473702,0.00279718,96427.0,96426.0,0.54428969]
[1736870473905,0.00279718,96427.0,96426.0,0.64851661]
[1736870474111,0.00279718,96427.0,96426.0,0.54428969]
[1736870474755,0.00179718,96427.0,96426.0,0.53828969]
[1736870474955,0.00279718,96427.0,96426.0,0.54528969]
[1736870475200,0.00279718,96427.0,96426.0,0.52228969]
[1736870475403,0.00279718,96427.0,96426.0,0.36000692]
[1736870475608,0.00179718,96427.0,96426.0,0.24878]
[1736870475802,0.00279718,96427.0,96426.0,0.05578]
[1736870475961,0.00279718,96427.0,96426.0,0.263192]
[1736870476156,0.00279718,96427.0,96426.0,0.59373812]
[1736870476363,0.00179718,96427.0,96426.0,0.73673812]
[1736870476666,0.00279718,96427.0,96426.0,0.74573812]
[1736870477175,0.00279718,96427.0,96426.0,0.75527528]
[1736870477579,0.00279718,96427.0,96426.0,0.77827528]
[1736870477984,0.00179718,96427.0,96426.0,0.76927528]
[1736870478383,0.00279718,96427.0,96426.0,0.62595608]
[1736870478581,0.00279718,96427.0,96426.0,0.51641892]
[1736870478800,0.00279718,96427.0,96426.0,0.05478]
[1736870479006,0.00179718,96427.0,96426.0,0.04878]
[1736870479213,0.00279718,96427.0,96426.0,0.05478]
[1736870479409,0.00279718,96427.0,96426.0,0.055817]
[1736870479902,0.00179718,96427.0,96426.0,0.04878]
[1736870480124,0.0247165,96427.0,96426.0,0.04878]
[1736870480526,0.1070165,96427.0,96426.0,0.04878]
[1736870480726,0.21124342,96427.0,96426.0,0.04878]
[1736870481332,0.21224342,96427.0,96426.0,0.05478]
[1736870481551,0.21224342,96427.0,96426.0,0.03505431]
[1736870481756,0.21224342,96427.0,96415.0,0.0008553]
[1736870481757,0.207434,96416.0,96415.0,0.0008553]
[1736870481929,0.35314662,96416.0,96415.0,0.0008553]
[1736870482166,0.39974662,96416.0,96415.0,0.0008553]
[1736870482371,0.207468,96400.0,96399.0,0.00135549]
[1736870482557,0.31169492,96400.0,96399.0,0.00135549]
[1736870483411,0.207468,96400.0,96399.0,0.00135549]
[1736870483613,0.0880857,96416.0,96399.0,0.00135549]
[1736870483838,0.207458,96405.0,96399.0,0.00135549]
[1736870484236,0.14258736,96415.0,96399.0,0.00135549]
[1736870484237,0.207467,96401.0,96399.0,0.00135549]
[1736870484441,0.10422692,96400.0,96399.0,0.00135549]
[1736870484836,0.10422692,96400.0,96399.0,0.00235549]
[1736870485411,0.10422692,96400.0,96399.0,0.00135549]
[1736870485603,0.15614271,96400.0,96399.0,0.00135549]
[1736870485805,0.23844271,96400.0,96399.0,0.00135549]
[1736870486530,0.24795052,96400.0,96399.0,0.00135549]
[1736870488605,0.24795052,96400.0,96399.0,0.00235549]
[1736870489149,0.24795052,96400.0,96399.0,0.00135549]
[1736870489345,0.19603473,96400.0,96399.0,0.00135549]
[1736870489531,0.19603473,96400.0,96399.0,0.00235549]
[1736870491040,0.0823,96400.0,96399.0,0.00235549]
[1736870491510,0.0823,96400.0,96399.0,0.05413549]
[1736870491908,0.0823,96400.0,96399.0,0.05313549]
[1736870492351,0.0823,96400.0,96399.0,0.05413549]
[1736870492529,0.0823,96400.0,96399.0,0.00235549]
[1736870492707,0.1320228,96400.0,96399.0,0.00135549]
[1736870492913,0.23624972,96400.0,96399.0,0.00135549]
[1736870493114,0.23624972,96400.0,96399.0,0.00235549]
[1736870493700,0.0497228,96400.0,96399.0,0.00135549]
[1736870494061,0.0497228,96400.0,96399.0,0.00235549]
[1736870494462,0.15394972,96400.0,96399.0,0.00235549]
[1736870495465,0.15394972,96400.0,96399.0,0.00135549]
[1736870495666,0.15394972,96400.0,96399.0,0.00335549]
[1736870496365,0.30394972,96400.0,96399.0,0.00135549]
[1736870496631,0.30494972,96400.0,96399.0,0.00135549]
[1736870497160,0.30394972,96400.0,96399.0,0.00135549]
[1736870497369,0.10722692,96400.0,96399.0,0.00135549]
[1736870498233,0.12798928,96400.0,96399.0,0.00135549]
[1736870498739,0.12498928,96400.0,96399.0,0.00135549]
[1736870499271,0.564942,96399.0,96395.0,1e-08]
[1736870499471,0.30082692,96396.0,96395.0,0.00014991]
[1736870499673,0.40505384,96396.0,96395.0,0.00014991]
[1736870501089,0.25505384,96396.0,96395.0,0.00014991]
[1736870502393,0.01899639,96380.0,96362.0,0.00072953]
[1736870502703,0.10422692,96379.0,96368.0,0.05271102]
[1736870503408,0.01899639,96380.0,96369.0,0.207535]
[1736870503647,0.01899639,96380.0,96369.0,0.0270622]
[1736870503875,0.01899639,96380.0,96377.0,0.207517]
[1736870504073,0.01899639,96380.0,96379.0,0.207514]
[1736870504187,0.01899639,96380.0,96379.0,0.20855138]
[1736870504387,0.01899639,96380.0,96378.0,0.00103742]
[1736870504613,0.01899639,96380.0,96377.0,0.05178]
[1736870504812,0.01899639,96380.0,96378.0,0.05178]
[1736870505019,0.01899639,96380.0,96369.0,0.05178]
[1736870505221,0.01899639,96380.0,96370.0,0.00103755]
[1736870505417,0.207514,96379.0,96370.0,0.05178]
[1736870505618,0.20753,96372.0,96370.0,0.05178]
[1736870506310,0.31175892,96371.0,96368.0,0.00093102]
[1736870506522,0.36368751,96371.0,96368.0,0.00093102]
[1736870506877,0.36368751,96371.0,96370.0,0.002]
[1736870507450,0.36368751,96371.0,96368.0,0.00093102]
[1736870507625,0.57121951,96371.0,96368.0,0.00093102]
[1736870507979,0.57121951,96371.0,96368.0,0.00393102]
[1736870508339,0.51929092,96371.0,96368.0,0.00393102]
[1736870509751,0.207557,96359.0,96353.0,7e-05]
[1736870509948,0.10422692,96358.0,96353.0,0.00021994]
[1736870510514,0.207567,96354.0,96353.0,0.00021994]
[1736870510645,0.207593,96342.0,96341.0,0.0146352]
[1736870510847,0.43333752,96342.0,96341.0,0.0146352]
[1736870511092,0.43333752,96342.0,96341.0,0.01478477]
[1736870511292,0.43333752,96342.0,96341.0,0.00978477]
[1736870511500,0.31181992,96342.0,96341.0,0.00978477]
[1736870512883,0.32136227,96342.0,96341.0,0.00978477]
[1736870513558,0.32236227,96342.0,96341.0,0.00978477]
[1736870513986,0.37006227,96342.0,96341.0,0.00978477]
[1736870514191,0.606585,96342.0,96341.0,0.00978477]
[1736870514520,0.605585,96342.0,96341.0,0.00978477]
[1736870514927,0.607585,96342.0,96341.0,0.00978477]
[1736870515569,0.605585,96342.0,96341.0,0.00978477]
[1736870516771,0.605585,96342.0,96341.0,0.01064057]
[1736870516772,0.36906227,96342.0,96341.0,0.01064057]
[1736870516975,0.32136227,96342.0,96341.0,0.01064057]
[1736870517176,0.32536227,96342.0,96341.0,0.01064057]
[1736870517701,0.32136227,96342.0,96341.0,0.01064057]
[1736870518058,0.31181992,96342.0,96341.0,0.01064057]
[1736870518262,0.20432773,96360.0,96341.0,0.01064057]
[1736870518444,0.001,96342.0,96341.0,0.01064057]
[1736870518644,0.001,96342.0,96341.0,0.06242057]
[1736870519006,0.20432773,96351.0,96342.0,0.207593]
[1736870519181,0.207568,96354.0,96342.0,0.259373]
[1736870519596,0.20432773,96360.0,96347.0,0.207582]
[1736870519597,0.41188373,96360.0,96347.0,0.207582]
[1736870519795,0.207549,96363.0,96343.0,0.00103789]
[1736870519963,0.415098,96363.0,96349.0,0.207578]
[1736870520160,0.415098,96363.0,96343.0,0.00103789]
[1736870520161,0.20432773,96360.0,96343.0,0.00103789]
[1736870520371,0.20432773,96360.0,96352.0,0.207571]
[1736870520609,0.22332412,96380.0,96353.0,0.0207571]
[1736870520823,0.01899639,96380.0,96360.0,0.20432773]
[1736870521014,0.01899639,96380.0,96373.0,0.207525]
[1736870521264,0.01899639,96380.0,96361.0,0.00103759]
[1736870521541,0.01899639,96380.0,96367.0,0.207538]
[1736870521749,0.207534,96370.0,96356.0,0.207562]
[1736870521954,0.10422692,96379.0,96357.0,0.05178]
[1736870522156,0.10422692,96379.0,96352.0,0.001]
[1736870522157,0.207537,96368.0,96356.0,0.05178]
[1736870522281,0.10422692,96367.0,96356.0,0.05178]
[1736870522487,0.207561,96358.0,96356.0,0.05178]
[1736870522690,0.207567,96355.0,96344.0,0.207588]
[1736870522896,0.207567,96355.0,96342.0,0.207593]
[1736870523637,0.207567,96355.0,96340.0,0.207596]
[1736870523843,0.207567,96354.0,96340.0,0.207596]
[1736870524047,0.207572,96352.0,96340.0,0.207596]
[1736870524454,0.207572,96352.0,96331.0,0.21729838]
[1736870524455,0.207544,96365.0,96336.0,0.207604]
[1736870524632,0.207589,96345.0,96341.0,0.062271]
[1736870525382,0.207589,96345.0,96341.0,0.063271]
[1736870525630,0.35333412,96344.0,96341.0,0.063271]
[1736870525833,0.56092412,96344.0,96341.0,0.010491]
[1736870526620,0.56092412,96344.0,96341.0,0.011491]
[1736870528087,0.56092412,96344.0,96341.0,0.010491]
[1736870528088,0.357593,96342.0,96341.0,0.010491]
[1736870528290,0.46181992,96342.0,96341.0,0.010491]
[1736870528644,0.56604684,96342.0,96341.0,0.010491]
[1736870528842,0.56604684,96342.0,96341.0,0.011491]
[1736870529315,0.56604684,96342.0,96341.0,0.010491]
[1736870529743,0.56904684,96342.0,96341.0,0.010491]
[1736870530499,0.56604684,96342.0,96341.0,0.010491]
[1736870530907,0.207628,96326.0,96325.0,0.0003]
[1736870531110,0.31185492,96326.0,96325.0,0.0003]
[1736870532093,0.31185492,96326.0,96325.0,0.00044957]
[1736870533756,0.31385492,96326.0,96325.0,0.00044957]
[1736870534604,0.207643,96319.0,96302.0,0.0008553]
[1736870534808,0.44166992,96319.0,96318.0,0.00094862]
[1736870535008,0.207677,96303.0,96302.0,0.0008553]
[1736870535149,0.31205354,96303.0,96302.0,0.0008553]
[1736870535372,0.46205354,96303.0,96302.0,0.0008553]
[1736870535598,0.15,96302.0,96300.0,0.03947295]
[1736870535941,0.60770892,96301.0,96300.0,0.03947295]
[1736870536144,0.67762701,96301.0,96300.0,0.01870495]
[1736870536259,0.207714,96286.0,96285.0,0.00968937]
[1736870536463,0.207725,96281.0,96280.0,0.15]
[1736870536675,0.31195192,96281.0,96280.0,0.15]
[1736870536982,0.63945192,96281.0,96280.0,0.046135]
[1736870537185,0.68096912,96281.0,96280.0,0.02896377]
[1736870537369,0.68096912,96281.0,96258.0,0.0008558]
[1736870537370,0.207772,96259.0,96258.0,0.0008558]
[1736870537579,0.10422692,96259.0,96247.0,0.00072953]
[1736870537778,0.10422692,96259.0,96244.0,0.0154915]
[1736870537779,0.31200792,96255.0,96244.0,0.0154915]
[1736870537988,0.207785,96253.0,96250.0,1e-08]
[1736870538211,0.20779,96251.0,96250.0,1e-08]
[1736870538418,0.31201692,96251.0,96250.0,1e-08]
[1736870538770,0.31216643,96251.0,96250.0,1e-08]
[1736870539892,0.20793951,96251.0,96250.0,1e-08]
[1736870540268,0.10437643,96251.0,96228.0,0.0008563]
[1736870540452,0.207835,96230.0,96228.0,0.0008563]
[1736870540847,0.33976999,96250.0,96228.0,0.0008563]
[1736870541052,0.13544226,96250.0,96228.0,0.0526363]
[1736870541254,0.00014951,96251.0,96229.0,0.0010391]
[1736870541401,0.00014951,96251.0,96228.0,0.0526363]
[1736870541402,0.00014951,96251.0,96237.0,0.20782]
[1736870542405,0.00014951,96251.0,96233.0,0.00103899]
[1736870542609,0.00014951,96251.0,96245.0,0.207801]
[1736870542811,0.00014951,96251.0,96239.0,0.207815]
[1736870543410,0.415585,96250.0,96235.0,0.207822]
[1736870543635,0.20432773,96250.0,96239.0,0.05178]
[1736870543838,0.20432773,96250.0,96228.0,0.0008563]
[1736870543839,0.10422692,96249.0,96228.0,0.0008563]
[1736870544091,0.207837,96229.0,96228.0,0.0008563]
[1736870544246,0.31206392,96229.0,96228.0,0.0008563]
[1736870545062,0.38483621,96229.0,96228.0,0.0008563]
[1736870545265,0.207833,96231.0,96228.0,0.0008563]
[1736870545441,0.207826,96235.0,96228.0,0.0008563]
[1736870546690,0.207835,96231.0,96228.0,0.0008563]
[1736870546887,0.20687073,96231.0,96228.0,0.0008563]
[1736870547094,0.10422692,96230.0,96228.0,0.0008563]
[1736870547418,0.25972937,96229.0,96228.0,0.0008563]
[1736870547582,0.31206392,96229.0,96228.0,0.0008563]
[1736870550090,0.20785,96223.0,96222.0,7e-05]
[1736870550287,0.31207692,96223.0,96222.0,7e-05]
[1736870551288,0.33312011,96223.0,96222.0,7e-05]
[1736870552043,0.20788,96210.0,96197.0,0.415811]
[1736870552249,0.01185111,96223.0,96197.0,0.05178]
[1736870552453,0.207879,96210.0,96198.0,0.207904]
[1736870552648,0.207887,96206.0,96198.0,0.05178]
[1736870552853,0.13635652,96222.0,96198.0,0.05178]
[1736870552854,0.207898,96201.0,96198.0,0.05178]
[1736870553167,0.415796,96201.0,96198.0,0.05178]
[1736870553386,0.41594537,96201.0,96198.0,0.05178]
[1736870553590,0.207902,96199.0,96198.0,0.05178]
[1736870553801,0.20792,96191.0,96184.0,0.0003]
[1736870554217,0.10422692,96199.0,96184.0,0.0003]
[1736870554218,0.415826,96194.0,96184.0,0.0003]
[1736870555337,0.10422692,96199.0,96177.0,0.00103963]
[1736870555519,0.10422692,96198.0,96176.0,0.20795]
[1736870555720,0.207916,96193.0,96178.0,0.207947]
[1736870555944,0.207916,96193.0,96182.0,0.207938]
[1736870556150,0.00014937,96201.0,96183.0,0.00103963]
[1736870556514,0.00014937,96201.0,96183.0,0.00156]
[1736870556515,0.207912,96195.0,96183.0,0.00156]
[1736870556920,0.10437629,96201.0,96183.0,0.00156]
[1736870556921,0.20792,96191.0,96183.0,0.00156]